[Event "Titled Tuesday Blitz March 21 Late 2023"]
[White "Goncalves, Davi Sulzbacher"]
[Black "Jaferian, Koosha"]
[WhiteFideId "2154510"]
[BlackFideId "12507440"]
[WhiteElo "2182"]
[BlackElo "2107"]
[Result "1-0"]
[Round "05"]
[TimeControl "180+2"]
[Date "2023.03.21"]
[WhiteClock "0:00:12"]
[BlackClock "0:00:30"]

1. Nf3 {[%clk 0:03:00]}  c5 {[%clk 0:02:58]} 2. g3 {[%clk 0:03:00]}  g6 {[%clk 0:02:57]} 3. Bg2 {[%clk 0:03:00]}  Bg7 {[%clk 0:02:57]} 4. O-O {[%clk 0:03:00]}  Nc6 {[%clk 0:02:57]} 5. c4 {[%clk 0:03:00]}  e5 {[%clk 0:02:56]} 6. Nc3 {[%clk 0:03:00]}  d6 {[%clk 0:02:56]} 7. d3 {[%clk 0:03:00]}  Nge7 {[%clk 0:02:54]} 8. a3 {[%clk 0:03:00]}  a5 {[%clk 0:02:54]} 9. Rb1 {[%clk 0:02:56]}  O-O {[%clk 0:02:53]} 10. Bd2 {[%clk 0:02:56]}  h6 {[%clk 0:02:52]} 11. Ne1 {[%clk 0:02:56]}  Be6 {[%clk 0:02:52]} 12. Nc2 {[%clk 0:02:56]}  d5 {[%clk 0:02:52]} 13. cxd5 {[%clk 0:02:55]}  Nxd5 {[%clk 0:02:53]} 14. Ne3 {[%clk 0:02:51]}  Nde7 {[%clk 0:02:47]} 15. Re1 {[%clk 0:02:13]}  Kh7 {[%clk 0:02:42]} 16. Qa4 {[%clk 0:02:02]}  Qd7 {[%clk 0:02:27]} 17. Rbc1 {[%clk 0:01:49]}  b6 {[%clk 0:02:07]} 18. Nc4 {[%clk 0:01:38]}  Rab8 {[%clk 0:02:01]} 19. Nb5 {[%clk 0:01:14]}  Bd5 {[%clk 0:01:48]} 20. Bxd5 {[%clk 0:00:54]}  Qxd5 {[%clk 0:01:39]} 21. Qb3 {[%clk 0:00:34]}  Rfd8 {[%clk 0:01:23]} 22. a4 {[%clk 0:00:33]}  Nf5 {[%clk 0:01:23]} 23. e4 {[%clk 0:00:32]}  Nfd4 {[%clk 0:01:17]} 24. exd5 {[%clk 0:00:32]}  Nxb3 {[%clk 0:01:14]} 25. dxc6 {[%clk 0:00:33]}  Nxc1 {[%clk 0:01:13]} 26. c7 {[%clk 0:00:32]}  Nxd3 {[%clk 0:01:14]} 27. Rd1 {[%clk 0:00:28]}  Rbc8 {[%clk 0:01:09]} 28. cxd8=Q {[%clk 0:00:25]}  Rxd8 {[%clk 0:01:09]} 29. Bc3 {[%clk 0:00:23]}  e4 {[%clk 0:00:57]} 30. Bxg7 {[%clk 0:00:22]}  Kxg7 {[%clk 0:00:58]} 31. Nxb6 {[%clk 0:00:20]}  f5 {[%clk 0:00:46]} 32. Nc4 {[%clk 0:00:20]}  Ra8 {[%clk 0:00:47]} 33. b3 {[%clk 0:00:19]}  Kf7 {[%clk 0:00:47]} 34. f3 {[%clk 0:00:17]}  Kf6 {[%clk 0:00:45]} 35. fxe4 {[%clk 0:00:17]}  fxe4 {[%clk 0:00:46]} 36. Kf1 {[%clk 0:00:16]}  Kg5 {[%clk 0:00:43]} 37. Ke2 {[%clk 0:00:16]}  Rf8 {[%clk 0:00:43]} 38. Rf1 {[%clk 0:00:15]}  Ra8 {[%clk 0:00:40]} 39. Nbd6 {[%clk 0:00:14]}  Nb4 {[%clk 0:00:32]} 40. Rf4 {[%clk 0:00:12]}  h5 {[%clk 0:00:30]} 41. Nf7# {[%clk 0:00:12]} 1-0


[Site "https://www.chess.com"]

[Event "Titled Tuesday Blitz March 21 Late 2023"]
[White "Luo, Terry"]
[Black "Martynov, Pavel"]
[WhiteFideId "30931045"]
[BlackFideId "4101260"]
[WhiteElo "2265"]
[BlackElo "2314"]
[Result "0-1"]
[Round "05"]
[TimeControl "180+2"]
[Date "2023.03.21"]
[WhiteClock "0:00:46"]
[BlackClock "0:01:17"]

1. d4 {[%clk 0:03:00]}  d5 {[%clk 0:02:59]} 2. c4 {[%clk 0:02:59]}  e6 {[%clk 0:03:00]} 3. Nf3 {[%clk 0:03:00]}  c5 {[%clk 0:03:00]} 4. cxd5 {[%clk 0:03:00]}  exd5 {[%clk 0:03:01]} 5. g3 {[%clk 0:03:00]}  Nc6 {[%clk 0:03:02]} 6. Bg2 {[%clk 0:03:01]}  Nf6 {[%clk 0:03:02]} 7. O-O {[%clk 0:03:01]}  Be7 {[%clk 0:03:03]} 8. dxc5 {[%clk 0:03:02]}  O-O {[%clk 0:03:03]} 9. Nc3 {[%clk 0:03:02]}  Bxc5 {[%clk 0:03:03]} 10. Na4 {[%clk 0:03:03]}  Be7 {[%clk 0:03:03]} 11. Be3 {[%clk 0:03:04]}  Re8 {[%clk 0:03:03]} 12. Rc1 {[%clk 0:03:04]}  h6 {[%clk 0:03:02]} 13. Nc5 {[%clk 0:03:04]}  Bxc5 {[%clk 0:02:56]} 14. Bxc5 {[%clk 0:03:03]}  Bg4 {[%clk 0:02:55]} 15. h3 {[%clk 0:03:02]}  Be6 {[%clk 0:02:54]} 16. Nd4 {[%clk 0:03:01]}  Qd7 {[%clk 0:02:53]} 17. Nxe6 {[%clk 0:02:59]}  Qxe6 {[%clk 0:02:52]} 18. e3 {[%clk 0:02:59]}  Rad8 {[%clk 0:02:48]} 19. Bd4 {[%clk 0:02:59]}  Ne4 {[%clk 0:02:47]} 20. Qb3 {[%clk 0:02:56]}  Nxd4 {[%clk 0:02:41]} 21. exd4 {[%clk 0:02:57]}  Nd2 {[%clk 0:02:42]} 22. Qxb7 {[%clk 0:02:57]}  Nxf1 {[%clk 0:02:42]} 23. Rxf1 {[%clk 0:02:58]}  Qb6 {[%clk 0:02:35]} 24. Qxb6 {[%clk 0:02:50]}  axb6 {[%clk 0:02:36]} 25. Bf3 {[%clk 0:02:51]}  Rd6 {[%clk 0:02:22]} 26. Rc1 {[%clk 0:02:48]}  Rf6 {[%clk 0:02:15]} 27. Kg2 {[%clk 0:02:45]}  Rd8 {[%clk 0:02:13]} 28. Rc7 {[%clk 0:02:43]}  g5 {[%clk 0:02:10]} 29. a4 {[%clk 0:02:35]}  Ra8 {[%clk 0:02:06]} 30. b3 {[%clk 0:02:34]}  Rd8 {[%clk 0:02:03]} 31. Rb7 {[%clk 0:02:32]}  Rfd6 {[%clk 0:02:01]} 32. Rc7 {[%clk 0:02:31]}  Re8 {[%clk 0:02:00]} 33. Kf1 {[%clk 0:02:27]}  Kg7 {[%clk 0:01:58]} 34. Bh5 {[%clk 0:02:22]}  Rf8 {[%clk 0:01:55]} 35. Ke2 {[%clk 0:02:19]}  Kf6 {[%clk 0:01:54]} 36. Kd3 {[%clk 0:02:19]}  Ke6 {[%clk 0:01:53]} 37. Bf3 {[%clk 0:02:15]}  Rfd8 {[%clk 0:01:50]} 38. Rb7 {[%clk 0:01:57]}  f5 {[%clk 0:01:49]} 39. Bg2 {[%clk 0:01:49]}  R8d7 {[%clk 0:01:48]} 40. Rb8 {[%clk 0:01:48]}  Rc7 {[%clk 0:01:45]} 41. Re8+ {[%clk 0:01:43]}  Kf6 {[%clk 0:01:39]} 42. Re5 {[%clk 0:01:41]}  Rcd7 {[%clk 0:01:39]} 43. f4 {[%clk 0:01:40]}  Rd8 {[%clk 0:01:38]} 44. Bf3 {[%clk 0:01:36]}  R8d7 {[%clk 0:01:37]} 45. Kd2 {[%clk 0:01:27]}  Rd8 {[%clk 0:01:35]} 46. Kd3 {[%clk 0:01:03]}  gxf4 {[%clk 0:01:35]} 47. gxf4 {[%clk 0:01:04]}  Rg8 {[%clk 0:01:36]} 48. Bxd5 {[%clk 0:01:03]}  Rg3+ {[%clk 0:01:36]} 49. Kc4 {[%clk 0:01:04]}  Rxh3 {[%clk 0:01:34]} 50. b4 {[%clk 0:01:04]}  Rh4 {[%clk 0:01:33]} 51. a5 {[%clk 0:01:03]}  bxa5 {[%clk 0:01:33]} 52. bxa5 {[%clk 0:01:04]}  Rxf4 {[%clk 0:01:33]} 53. Kc5 {[%clk 0:01:05]}  Rd7 {[%clk 0:01:27]} 54. Re6+ {[%clk 0:01:02]}  Kg5 {[%clk 0:01:27]} 55. a6 {[%clk 0:01:02]}  Rf1 {[%clk 0:01:25]} 56. Bb7 {[%clk 0:00:47]}  Rc1+ {[%clk 0:01:23]} 57. Kb6 {[%clk 0:00:47]}  Rxd4 {[%clk 0:01:20]} 58. a7 {[%clk 0:00:47]}  Rb4+ {[%clk 0:01:20]} 59. Ka5 {[%clk 0:00:46]}  Rxb7 {[%clk 0:01:17]} 0-1


[Site "https://www.chess.com"]

[Event "Titled Tuesday Blitz March 21 Late 2023"]
[White "Miszler, Levente"]
[Black "Herrera Reyes, Jose Antonio"]
[WhiteFideId "763276"]
[BlackFideId "2274914"]
[WhiteElo "2176"]
[BlackElo "2273"]
[Result "0-1"]
[Round "05"]
[TimeControl "180+2"]
[Date "2023.03.21"]
[WhiteClock "0:00:16"]
[BlackClock "0:01:26"]

1. Nf3 {[%clk 0:03:00]}  Nf6 {[%clk 0:02:59]} 2. c4 {[%clk 0:02:57]}  g6 {[%clk 0:03:00]} 3. g3 {[%clk 0:02:57]}  Bg7 {[%clk 0:03:01]} 4. Bg2 {[%clk 0:02:57]}  d6 {[%clk 0:03:01]} 5. O-O {[%clk 0:02:58]}  Nc6 {[%clk 0:03:02]} 6. Nc3 {[%clk 0:02:59]}  h5 {[%clk 0:03:03]} 7. d3 {[%clk 0:02:57]}  h4 {[%clk 0:03:03]} 8. Nxh4 {[%clk 0:02:56]}  Bg4 {[%clk 0:03:03]} 9. Qa4 {[%clk 0:02:42]}  Qd7 {[%clk 0:03:02]} 10. Nd5 {[%clk 0:02:40]}  Bh3 {[%clk 0:02:57]} 11. Nxc7+ {[%clk 0:02:16]}  Kf8 {[%clk 0:02:57]} 12. Nxa8 {[%clk 0:02:12]}  Rxh4 {[%clk 0:02:57]} 13. f3 {[%clk 0:01:32]}  Rh5 {[%clk 0:02:44]} 14. Bxh3 {[%clk 0:01:27]}  Qxh3 {[%clk 0:02:43]} 15. Rf2 {[%clk 0:01:27]}  Qc8 {[%clk 0:02:26]} 16. Be3 {[%clk 0:01:10]}  Qxa8 {[%clk 0:02:25]} 17. Rb1 {[%clk 0:01:10]}  Qc8 {[%clk 0:02:23]} 18. b4 {[%clk 0:01:08]}  Qe6 {[%clk 0:02:17]} 19. Bd2 {[%clk 0:01:02]}  Nd7 {[%clk 0:02:05]} 20. b5 {[%clk 0:00:55]}  Nd4 {[%clk 0:02:01]} 21. Qxa7 {[%clk 0:00:51]}  Bf6 {[%clk 0:01:46]} 22. e3 {[%clk 0:00:47]}  Nc5 {[%clk 0:01:43]} 23. Qa3 {[%clk 0:00:29]}  Qf5 {[%clk 0:01:31]} 24. e4 {[%clk 0:00:19]}  Nxf3+ {[%clk 0:01:28]} 25. Rxf3 {[%clk 0:00:16]}  Qxf3 {[%clk 0:01:27]} 26. Rf1 {[%clk 0:00:16]}  Bd4+ {[%clk 0:01:26]} 0-1


[Site "https://www.chess.com"]

[Event "Titled Tuesday Blitz March 21 Late 2023"]
[White "Diaz Perez, Michel Alejandro"]
[Black "Kashefi, Amir Hosein"]
[WhiteFideId "3517179"]
[BlackFideId "12557935"]
[WhiteElo "2333"]
[BlackElo "2078"]
[Result "1-0"]
[Round "05"]
[TimeControl "180+2"]
[Date "2023.03.21"]
[WhiteClock "0:00:09"]
[BlackClock "0:00:01"]

1. Nf3 {[%clk 0:03:00]}  d5 {[%clk 0:02:51]} 2. c4 {[%clk 0:03:01]}  c6 {[%clk 0:02:50]} 3. b3 {[%clk 0:02:59]}  Nf6 {[%clk 0:02:47]} 4. Qc2 {[%clk 0:02:57]}  g6 {[%clk 0:02:43]} 5. Bb2 {[%clk 0:02:56]}  Bg7 {[%clk 0:02:41]} 6. g3 {[%clk 0:02:55]}  O-O {[%clk 0:02:35]} 7. Bg2 {[%clk 0:02:55]}  Bf5 {[%clk 0:02:33]} 8. d3 {[%clk 0:02:54]}  Nbd7 {[%clk 0:02:28]} 9. Nbd2 {[%clk 0:02:52]}  Re8 {[%clk 0:02:27]} 10. h3 {[%clk 0:02:43]}  h5 {[%clk 0:02:19]} 11. e4 {[%clk 0:02:32]}  dxe4 {[%clk 0:02:18]} 12. dxe4 {[%clk 0:02:33]}  Be6 {[%clk 0:02:15]} 13. Ng5 {[%clk 0:02:18]}  Nc5 {[%clk 0:02:15]} 14. Nxe6 {[%clk 0:02:17]}  Nxe6 {[%clk 0:02:15]} 15. Rd1 {[%clk 0:02:12]}  Nd4 {[%clk 0:02:12]} 16. Qd3 {[%clk 0:02:01]}  e5 {[%clk 0:02:10]} 17. Nf3 {[%clk 0:01:59]}  c5 {[%clk 0:02:09]} 18. O-O {[%clk 0:01:55]}  Nd7 {[%clk 0:02:08]} 19. Ne1 {[%clk 0:01:40]}  Nf8 {[%clk 0:02:06]} 20. Nc2 {[%clk 0:01:39]}  h4 {[%clk 0:02:05]} 21. Ne3 {[%clk 0:01:35]}  Nfe6 {[%clk 0:02:01]} 22. Nd5 {[%clk 0:01:34]}  b6 {[%clk 0:01:58]} 23. Bc1 {[%clk 0:01:29]}  Qd6 {[%clk 0:01:46]} 24. gxh4 {[%clk 0:01:27]}  Nf4 {[%clk 0:01:43]} 25. Bxf4 {[%clk 0:01:22]}  exf4 {[%clk 0:01:44]} 26. Rfe1 {[%clk 0:01:17]}  Be5 {[%clk 0:01:44]} 27. Kh1 {[%clk 0:01:05]}  Kg7 {[%clk 0:01:43]} 28. h5 {[%clk 0:01:04]}  Rh8 {[%clk 0:01:36]} 29. Bf3 {[%clk 0:01:02]}  Qe6 {[%clk 0:01:22]} 30. Bg4 {[%clk 0:00:59]}  Qc6 {[%clk 0:01:06]} 31. Rg1 {[%clk 0:01:00]}  g5 {[%clk 0:00:56]} 32. h4 {[%clk 0:00:55]}  Rag8 {[%clk 0:00:37]} 33. hxg5 {[%clk 0:00:54]}  Kf8 {[%clk 0:00:37]} 34. Bf3 {[%clk 0:00:42]}  Qg6 {[%clk 0:00:31]} 35. Rg2 {[%clk 0:00:25]}  Rxh5+ {[%clk 0:00:27]} 36. Bxh5 {[%clk 0:00:24]}  Qxh5+ {[%clk 0:00:28]} 37. Rh2 {[%clk 0:00:24]}  Qxg5 {[%clk 0:00:28]} 38. Qh3 {[%clk 0:00:21]}  Ne6 {[%clk 0:00:05]} 39. Rg2 {[%clk 0:00:20]}  Qxg2+ {[%clk 0:00:04]} 40. Qxg2 {[%clk 0:00:21]}  Rxg2 {[%clk 0:00:04]} 41. Kxg2 {[%clk 0:00:22]}  Nd4 {[%clk 0:00:03]} 42. f3 {[%clk 0:00:18]}  Nc2 {[%clk 0:00:03]} 43. Rh1 {[%clk 0:00:16]}  Kg7 {[%clk 0:00:02]} 44. Rh4 {[%clk 0:00:16]}  Nd4 {[%clk 0:00:01]} 45. Nxf4 {[%clk 0:00:15]}  Nc2 {[%clk 0:00:01]} 46. Nd5 {[%clk 0:00:14]}  Nd4 {[%clk 0:00:01]} 47. f4 {[%clk 0:00:14]}  Bd6 {[%clk 0:00:02]} 48. e5 {[%clk 0:00:14]}  Bf8 {[%clk 0:00:01]} 49. Rg4+ {[%clk 0:00:15]}  Kh7 {[%clk 0:00:01]} 50. Kf2 {[%clk 0:00:12]}  Kh6 {[%clk 0:00:02]} 51. Rg8 {[%clk 0:00:11]}  Bg7 {[%clk 0:00:01]} 52. Ke3 {[%clk 0:00:09]}  Kh7 {[%clk 0:00:02]} 53. Ra8 {[%clk 0:00:09]}  Nc2+ {[%clk 0:00:03]} 54. Ke4 {[%clk 0:00:09]}  Nd4 {[%clk 0:00:03]} 55. f5 {[%clk 0:00:09]}  Nc6 {[%clk 0:00:02]} 56. f6 {[%clk 0:00:08]}  Bh6 {[%clk 0:00:02]} 57. Rc8 {[%clk 0:00:08]}  Nb4 {[%clk 0:00:01]} 58. Rc7 {[%clk 0:00:09]}  Nc2 {[%clk 0:00:01]} 59. Rxf7+ {[%clk 0:00:08]}  Kg6 {[%clk 0:00:01]} 60. Rxa7 {[%clk 0:00:08]}  Ne1 {[%clk 0:00:01]} 61. Ne7+ {[%clk 0:00:09]} 1-0


[Site "https://www.chess.com"]

[Event "Titled Tuesday Blitz March 21 Late 2023"]
[White "Sztokbant, Bernardo Vainzoff"]
[Black "Sai Krishna G V"]
[WhiteFideId "2115956"]
[BlackFideId "5028280"]
[WhiteElo "2222"]
[BlackElo "2359"]
[Result "1-0"]
[Round "05"]
[TimeControl "180+2"]
[Date "2023.03.21"]
[WhiteClock "0:00:08"]
[BlackClock "0:00:01"]

1. e4 {[%clk 0:02:59]}  c5 {[%clk 0:02:59]} 2. Nc3 {[%clk 0:02:58]}  g6 {[%clk 0:02:53]} 3. f4 {[%clk 0:02:58]}  Bg7 {[%clk 0:02:53]} 4. Nf3 {[%clk 0:02:58]}  e6 {[%clk 0:02:52]} 5. g3 {[%clk 0:02:55]}  Ne7 {[%clk 0:02:52]} 6. Bg2 {[%clk 0:02:56]}  O-O {[%clk 0:02:53]} 7. O-O {[%clk 0:02:56]}  d5 {[%clk 0:02:53]} 8. d3 {[%clk 0:02:56]}  Nbc6 {[%clk 0:02:52]} 9. e5 {[%clk 0:02:55]}  f6 {[%clk 0:02:41]} 10. exf6 {[%clk 0:02:55]}  Bxf6 {[%clk 0:02:42]} 11. Re1 {[%clk 0:02:50]}  Nf5 {[%clk 0:02:39]} 12. Ne2 {[%clk 0:02:44]}  Qb6 {[%clk 0:02:33]} 13. c3 {[%clk 0:02:42]}  d4 {[%clk 0:02:30]} 14. Qb3 {[%clk 0:02:31]}  c4 {[%clk 0:01:59]} 15. Qxb6 {[%clk 0:02:00]}  axb6 {[%clk 0:02:00]} 16. dxc4 {[%clk 0:01:37]}  d3 {[%clk 0:02:01]} 17. g4 {[%clk 0:01:38]}  dxe2 {[%clk 0:01:44]} 18. gxf5 {[%clk 0:01:37]}  Na5 {[%clk 0:01:37]} 19. fxg6 {[%clk 0:01:34]}  Nb3 {[%clk 0:01:34]} 20. gxh7+ {[%clk 0:01:21]}  Kxh7 {[%clk 0:01:35]} 21. Rb1 {[%clk 0:01:18]}  Rxa2 {[%clk 0:01:34]} 22. Be3 {[%clk 0:01:12]}  e5 {[%clk 0:00:32]} 23. fxe5 {[%clk 0:01:00]}  Be7 {[%clk 0:00:19]} 24. Rxe2 {[%clk 0:01:00]}  Bg4 {[%clk 0:00:15]} 25. Rf2 {[%clk 0:01:00]}  Kg6 {[%clk 0:00:12]} 26. Rbf1 {[%clk 0:00:51]}  Rd8 {[%clk 0:00:12]} 27. Nd4 {[%clk 0:00:49]}  Nc5 {[%clk 0:00:11]} 28. b4 {[%clk 0:00:43]}  Rxf2 {[%clk 0:00:07]} 29. Rxf2 {[%clk 0:00:43]}  Ne6 {[%clk 0:00:05]} 30. Bxb7 {[%clk 0:00:32]}  Kh5 {[%clk 0:00:02]} 31. Bd5 {[%clk 0:00:27]}  Nxd4 {[%clk 0:00:02]} 32. Bxd4 {[%clk 0:00:26]}  Bh4 {[%clk 0:00:03]} 33. Rf7 {[%clk 0:00:18]}  Re8 {[%clk 0:00:01]} 34. Kg2 {[%clk 0:00:12]}  Bd1 {[%clk 0:00:01]} 35. Rf5+ {[%clk 0:00:08]}  Kg6 {[%clk 0:00:01]} 36. Be4 {[%clk 0:00:08]}  Kh6 {[%clk 0:00:02]} 37. Be3+ {[%clk 0:00:08]}  Kh7 {[%clk 0:00:02]} 38. Rf8+ {[%clk 0:00:07]}  Kg7 {[%clk 0:00:01]} 39. Rxe8 {[%clk 0:00:08]} 1-0


[Site "https://www.chess.com"]

[Event "Titled Tuesday Blitz March 21 Late 2023"]
[White "Shapiro, Viktor"]
[Black "Gunduz, Umut Erdem"]
[WhiteFideId "4175700"]
[BlackFideId "6381383"]
[WhiteElo "2152"]
[BlackElo "2182"]
[Result "1-0"]
[Round "05"]
[TimeControl "180+2"]
[Date "2023.03.21"]
[WhiteClock "0:01:08"]
[BlackClock "0:00:01"]

1. c4 {[%clk 0:03:00]}  c5 {[%clk 0:02:59]} 2. Nc3 {[%clk 0:03:00]}  Nc6 {[%clk 0:02:58]} 3. g3 {[%clk 0:03:01]}  g6 {[%clk 0:02:58]} 4. Bg2 {[%clk 0:03:01]}  Bg7 {[%clk 0:02:59]} 5. Nf3 {[%clk 0:03:02]}  Nh6 {[%clk 0:02:59]} 6. O-O {[%clk 0:03:01]}  Nf5 {[%clk 0:03:00]} 7. e3 {[%clk 0:03:01]}  O-O {[%clk 0:02:58]} 8. d3 {[%clk 0:02:59]}  a6 {[%clk 0:02:54]} 9. a3 {[%clk 0:02:58]}  Rb8 {[%clk 0:02:53]} 10. Bd2 {[%clk 0:02:58]}  b5 {[%clk 0:02:52]} 11. cxb5 {[%clk 0:02:58]}  axb5 {[%clk 0:02:53]} 12. Rc1 {[%clk 0:02:54]}  b4 {[%clk 0:02:52]} 13. Na4 {[%clk 0:02:55]}  d6 {[%clk 0:02:47]} 14. d4 {[%clk 0:02:54]}  Ba6 {[%clk 0:02:25]} 15. Re1 {[%clk 0:02:48]}  c4 {[%clk 0:01:53]} 16. d5 {[%clk 0:02:35]}  bxa3 {[%clk 0:01:41]} 17. bxa3 {[%clk 0:02:35]}  Na5 {[%clk 0:01:30]} 18. e4 {[%clk 0:02:27]}  Nd4 {[%clk 0:01:20]} 19. Nxd4 {[%clk 0:02:20]}  Bxd4 {[%clk 0:01:21]} 20. Bxa5 {[%clk 0:02:12]}  Qxa5 {[%clk 0:01:21]} 21. Qxd4 {[%clk 0:02:11]}  Qxa4 {[%clk 0:01:22]} 22. e5 {[%clk 0:02:08]}  Qxa3 {[%clk 0:01:20]} 23. Ra1 {[%clk 0:02:01]}  dxe5 {[%clk 0:00:36]} 24. Qxe5 {[%clk 0:01:55]}  Qd3 {[%clk 0:00:19]} 25. Rxa6 {[%clk 0:01:52]}  c3 {[%clk 0:00:19]} 26. Rc6 {[%clk 0:01:52]}  c2 {[%clk 0:00:18]} 27. Be4 {[%clk 0:01:41]}  Qd2 {[%clk 0:00:06]} 28. Bxc2 {[%clk 0:01:40]}  Rfd8 {[%clk 0:00:06]} 29. Rc5 {[%clk 0:01:24]}  Rd6 {[%clk 0:00:04]} 30. Qxe7 {[%clk 0:01:19]}  Rxd5 {[%clk 0:00:02]} 31. Rxd5 {[%clk 0:01:18]}  Qxd5 {[%clk 0:00:03]} 32. Qe5 {[%clk 0:01:15]}  Qd8 {[%clk 0:00:02]} 33. Be4 {[%clk 0:01:13]}  Rb3 {[%clk 0:00:02]} 34. Bd5 {[%clk 0:01:12]}  Rb8 {[%clk 0:00:02]} 35. Qf4 {[%clk 0:01:08]}  Qxd5 {[%clk 0:00:01]} 36. Qxb8+ {[%clk 0:01:08]} 1-0


[Site "https://www.chess.com"]

[Event "Titled Tuesday Blitz March 21 Late 2023"]
[White "Meissner, Felix"]
[Black "Gontcharov, Vladislav"]
[WhiteFideId "24671827"]
[BlackFideId "4123492"]
[WhiteElo "2350"]
[BlackElo "2470"]
[Result "0-1"]
[Round "05"]
[TimeControl "180+2"]
[Date "2023.03.21"]
[WhiteClock "0:01:29"]
[BlackClock "0:00:13"]

1. e4 {[%clk 0:03:00]}  e6 {[%clk 0:02:54]} 2. d4 {[%clk 0:03:00]}  d5 {[%clk 0:02:54]} 3. Nd2 {[%clk 0:02:58]}  c5 {[%clk 0:02:51]} 4. exd5 {[%clk 0:02:58]}  exd5 {[%clk 0:02:50]} 5. Ngf3 {[%clk 0:02:59]}  Nc6 {[%clk 0:02:50]} 6. Bb5 {[%clk 0:02:59]}  Bd6 {[%clk 0:02:50]} 7. O-O {[%clk 0:02:59]}  Ne7 {[%clk 0:02:50]} 8. dxc5 {[%clk 0:02:59]}  Bxc5 {[%clk 0:02:50]} 9. Nb3 {[%clk 0:03:00]}  Bd6 {[%clk 0:02:50]} 10. c3 {[%clk 0:03:00]}  h6 {[%clk 0:02:49]} 11. h3 {[%clk 0:03:01]}  O-O {[%clk 0:02:48]} 12. Re1 {[%clk 0:03:00]}  Bc7 {[%clk 0:02:38]} 13. Bf1 {[%clk 0:02:59]}  a5 {[%clk 0:02:32]} 14. g3 {[%clk 0:02:59]}  a4 {[%clk 0:02:32]} 15. Nbd4 {[%clk 0:02:59]}  Ng6 {[%clk 0:02:27]} 16. Bg2 {[%clk 0:02:59]}  Nce7 {[%clk 0:02:14]} 17. Nb5 {[%clk 0:02:57]}  Bb6 {[%clk 0:02:13]} 18. Be3 {[%clk 0:02:56]}  Bd7 {[%clk 0:02:12]} 19. Nbd4 {[%clk 0:02:52]}  Qc7 {[%clk 0:02:06]} 20. Qd2 {[%clk 0:02:49]}  Kh7 {[%clk 0:01:51]} 21. h4 {[%clk 0:02:49]}  Rfe8 {[%clk 0:01:45]} 22. h5 {[%clk 0:02:48]}  Nf8 {[%clk 0:01:44]} 23. Bf4 {[%clk 0:02:48]}  Qc8 {[%clk 0:01:42]} 24. Ne5 {[%clk 0:02:48]}  f6 {[%clk 0:01:31]} 25. Qd3+ {[%clk 0:02:46]}  Kg8 {[%clk 0:01:27]} 26. Nxd7 {[%clk 0:02:45]}  Qxd7 {[%clk 0:01:26]} 27. Kh2 {[%clk 0:02:43]}  Nc6 {[%clk 0:01:23]} 28. Bh3 {[%clk 0:02:42]}  Qf7 {[%clk 0:01:19]} 29. Bg4 {[%clk 0:02:29]}  Bxd4 {[%clk 0:00:50]} 30. cxd4 {[%clk 0:02:30]}  Nb4 {[%clk 0:00:38]} 31. Qf5 {[%clk 0:02:27]}  Rec8 {[%clk 0:00:30]} 32. Bd6 {[%clk 0:02:17]}  Nc6 {[%clk 0:00:29]} 33. Rad1 {[%clk 0:02:15]}  Re8 {[%clk 0:00:29]} 34. a3 {[%clk 0:02:14]}  Rxe1 {[%clk 0:00:28]} 35. Rxe1 {[%clk 0:02:15]}  Nxd4 {[%clk 0:00:29]} 36. Qd3 {[%clk 0:02:11]}  f5 {[%clk 0:00:27]} 37. Re7 {[%clk 0:02:09]}  Qf6 {[%clk 0:00:27]} 38. Bd1 {[%clk 0:02:07]}  Nfe6 {[%clk 0:00:27]} 39. Rxb7 {[%clk 0:02:05]}  f4 {[%clk 0:00:28]} 40. Qg6 {[%clk 0:02:03]}  fxg3+ {[%clk 0:00:27]} 41. Kxg3 {[%clk 0:02:00]}  Qxg6+ {[%clk 0:00:24]} 42. hxg6 {[%clk 0:02:01]}  Nf5+ {[%clk 0:00:24]} 43. Kg4 {[%clk 0:01:58]}  Nxd6 {[%clk 0:00:24]} 44. Rb6 {[%clk 0:01:58]}  Rd8 {[%clk 0:00:21]} 45. Bxa4 {[%clk 0:01:57]}  Nd4 {[%clk 0:00:21]} 46. Bd1 {[%clk 0:01:54]}  Ne4 {[%clk 0:00:21]} 47. Ba4 {[%clk 0:01:35]}  Nxf2+ {[%clk 0:00:20]} 48. Kf4 {[%clk 0:01:35]}  Nd3+ {[%clk 0:00:19]} 49. Ke3 {[%clk 0:01:34]}  Nc5 {[%clk 0:00:18]} 50. Kxd4 {[%clk 0:01:29]}  Nxa4 {[%clk 0:00:18]} 51. Rb4 {[%clk 0:01:30]}  Ra8 {[%clk 0:00:17]} 52. Kxd5 {[%clk 0:01:29]}  Kf8 {[%clk 0:00:17]} 53. Kd4 {[%clk 0:01:28]}  Ke7 {[%clk 0:00:17]} 54. b3 {[%clk 0:01:28]}  Nb2 {[%clk 0:00:15]} 55. a4 {[%clk 0:01:28]}  Kf6 {[%clk 0:00:13]} 56. Rb6+ {[%clk 0:01:28]}  Kg5 {[%clk 0:00:13]} 57. Kc3 {[%clk 0:01:29]}  Nxa4+ {[%clk 0:00:13]} 58. bxa4 {[%clk 0:01:28]}  Rxa4 {[%clk 0:00:13]} 59. Kd3 {[%clk 0:01:29]}  Rf4 {[%clk 0:00:13]} 60. Ke3 {[%clk 0:01:29]}  Rf6 {[%clk 0:00:13]} 61. Rb7 {[%clk 0:01:29]}  Kxg6 {[%clk 0:00:14]} 62. Ke4 {[%clk 0:01:29]}  h5 {[%clk 0:00:14]} 63. Ke3 {[%clk 0:01:28]}  Kg5 {[%clk 0:00:14]} 64. Rb4 {[%clk 0:01:29]}  g6 {[%clk 0:00:13]} 65. Rb5+ {[%clk 0:01:29]}  Rf5 {[%clk 0:00:13]} 0-1


[Site "https://www.chess.com"]